[Event "EYCC Open U12 2018"]
[Site "Riga"]
[Date "2018.08.24"]
[Round "5"]
[White "Strybuk, Artsiom I"]
[Black "Damjanovic, Vuk"]
[Result "1-0"]
[ECO "B07"]
[WhiteElo "1999"]
[BlackElo "2044"]
[Annotator "NA"]
[PlyCount "119"]
[EventDate "2018.08.20"]
[EventType "swiss"]
[EventCountry "LAT"]
[SourceTitle "playchess.com"]
[Source "ChessBase"]
[SourceQuality "1"]
[TimeControl "40/5400+30:1800+30"]

1. e4 {[%emt 0:00:00]} d6 {[%emt 0:00:00]} 2. d4 {[%emt 0:00:17]} Nf6 {[%emt 0:00:00]} 3. Nc3 {[%emt 0:00:27]} Nc6 {[%emt 0:00:00]} 4. f3 {[%emt 0:01:19]} g6 {[%emt 0:05:08]} 5. Be3 {[%emt 0:01:35]} Bg7 {[%emt 0:00:38]} 6. Nge2 {[%emt 0:01:50]} O-O {[%emt 0:04:00]} 7. Qd2 {[%emt 0:00:44]} e5 {[%emt 0:08:35]} 8. d5 {[%emt 0:02:44]} Ne7 {[%emt 0:04:09]} 9. O-O-O {[%emt 0:02:29]} Bd7 {[%emt 0:18:08] B07: Pirc Defence: Miscellaneous Systems} 10. h4 $146 {[%emt 0:08:16]} ({Predecessor:} 10. g4 Ne8 11. h4 f5 12. gxf5 gxf5 13. Bg5 f4 14. Bh3 Bxh3 15. Rxh3 h6 16. Bxe7 Qxe7 17. h5 {1-0 (53) Shtyrenkov,V (2393)-Sysoenko,A (2266) Alushta 2010}) 10... b5 {[%emt 0:11:21]} 11. h5 {[%emt 0:10:02]} b4 {[%emt 0:03:17]} 12. Nb1 {[%emt 0:00:33]} a5 {[%emt 0:03:12]} 13. g4 {[%emt 0:05:40]} a4 {[%emt 0:11:33]} 14. Qxb4 {[%emt 0:07:31]} Qc8 {[%emt 0:04:59]} 15. Ng3 {[%emt 0:05:10]} Rd8 {[%emt 0:04:14]} 16. Qd2 {[%emt 0:02:56]} Qb7 {[%emt 0:03:43]} 17. Bh6 {[%emt 0:15:04]} Rdb8 {[%emt 0:00:29]} 18. b3 {[%emt 0:00:17]} axb3 {[%emt 0:00:05]} 19. axb3 $16 {[%emt 0:00:13]} Ra1 {[%emt 0:06:48]} 20. hxg6 {[%emt 0:03:32]} fxg6 {[%emt 0:01:12]} 21. Bxg7 {[%emt 0:01:09]} Kxg7 {[%emt 0:00:15]} 22. Qh6+ {[%emt 0:01:43]} Kf7 {[%emt 0:00:06]} 23. g5 {[%emt 0:03:06]} Nfg8 {[%emt 0:00:03]} 24. Qxh7+ {[%emt 0:01:41]} Kf8 {[%emt 0:00:04]} 25. Bd3 {[%emt 0:07:20]} Qa7 {[%emt 0:00:51]} 26. Kd2 {[%emt 0:02:16]} Rxb3 27. cxb3 {[%emt 0:04:53]} Ra2+ {[%emt 0:04:04]} 28. Kc1 {[%emt 0:01:40]} Qe3+ {[%emt 0:01:17]} 29. Rd2 {[%emt 0:00:07]} Rxd2 {[%emt 0:00:15]} 30. Nxd2 {[%emt 0:00:11]} Qxd3 {[%emt 0:00:05]} 31. Qh2 {[%emt 0:03:09]} Bb5 {[%emt 0:00:54]} 32. Qf2 {[%emt 0:01:18]} Qc3+ {[%emt 0:00:12]} 33. Kb1 {[%emt 0:00:10]} Bd3+ {[%emt 0:00:22]} 34. Ka2 {[%emt 0:00:11]} c6 {[%emt 0:02:35]} 35. Nb1 {[%emt 0:04:04]} Qa5+ {[%emt 0:00:58]} 36. Kb2 {[%emt 0:00:01]} cxd5 {[%emt 0:00:27]} 37. Qd2 {[%emt 0:00:17]} Qa6 {[%emt 0:00:59]} 38. Rd1 {[%emt 0:00:21]} Bxb1 {[%emt 0:00:12]} 39. Rxb1 {[%emt 0:00:53]} d4 {[%emt 0:00:01]} 40. Ra1 {[%emt 0:00:00]} Qc6 {[%emt 0:00:00]} 41. Rc1 {[%emt 0:03:18]} Qb5 {[%emt 0:01:45]} 42. Qc2 {[%emt 0:05:56]} Qb4 {[%emt 0:00:34]} 43. Nf1 {[%emt 0:01:53]} Qb5 {[%emt 0:01:24]} 44. Nh2 {[%emt 0:03:22]} d3 {[%emt 0:04:01]} 45. Qc4 {[%emt 0:01:50]} Qd7 {[%emt 0:00:55]} 46. Qxd3 {[%emt 0:00:54]} Qh3 {[%emt 0:00:05]} 47. Ng4 {[%emt 0:00:16]} Qg3 {[%emt 0:00:23]} 48. Nf6 {[%emt 0:01:08]} Kf7 {[%emt 0:00:46]} 49. Nxg8 {[%emt 0:00:20]} Kxg8 {[%emt 0:00:12]} 50. Qxd6 {[%emt 0:00:24]} Qxg5 {[%emt 0:00:08]} 51. Rc7 {[%emt 0:00:30]} Kf7 {[%emt 0:00:09]} 52. Rxe7+ {[%emt 0:00:16]} Qxe7 {[%emt 0:00:05]} 53. Qxe7+ {[%emt 0:00:09]} Kxe7 {[%emt 0:00:04]} 54. Kc3 {[%emt 0:00:02]} Kd6 {[%emt 0:00:01]} 55. Kc4 {[%emt 0:00:09]} Kc6 {[%emt 0:00:03]} 56. b4 {[%emt 0:00:10]} g5 {[%emt 0:00:02]} 57. b5+ {[%emt 0:00:06]} Kd6 {[%emt 0:00:03]} 58. b6 {[%emt 0:00:35]} Kc6 {[%emt 0:00:02]} 59. b7 {[%emt 0:00:11]} Kxb7 {[%emt 0:00:07]} 60. Kd5 {[%emt 0:00:04]} 1-0

[Event "EYCC Open U12 2018"]
[Site "Riga"]
[Date "2018.08.24"]
[Round "5"]
[White "Razafindratsima, Timothe"]
[Black "Sokolovsky, Yahli"]
[Result "0-1"]
[ECO "B06"]
[WhiteElo "1978"]
[BlackElo "2062"]
[Annotator "NA"]
[PlyCount "71"]
[EventDate "2018.08.20"]
[EventType "swiss"]
[EventCountry "LAT"]
[SourceTitle "playchess.com"]
[Source "ChessBase"]
[SourceQuality "1"]
[TimeControl "40/5400+30:1800+30"]

1. e4 {[%emt 0:00:00]} g6 {[%emt 0:00:00]} 2. d4 {[%emt 0:00:00]} Bg7 {[%emt 0:00:00]} 3. Nc3 {[%emt 0:00:00]} d6 {[%emt 0:00:08]} 4. Be3 {[%emt 0:00:19]} a6 {[%emt 0:01:23]} 5. Qd2 {[%emt 0:00:21]} b5 {[%emt 0:01:05]} 6. a3 {[%emt 0:00:29]} Bb7 {[%emt 0:02:03] B06: Modern Defence} 7. O-O-O {[%emt 0:01:19]} Nd7 {[%emt 0:01:27]} 8. h4 Ngf6 {[%emt 0:03:38]} 9. f3 {[%emt 0:03:07]} h5 {[%emt 0:01:12]} 10. Nh3 {[%emt 0:04:11]} Rc8 $146 {[%emt 0:05:02]} ({Predecessor:} 10... O-O 11. Ng5 c5 12. Be2 Rc8 13. g4 b4 14. Nb1 cxd4 15. Bxd4 {0-1 (29) Dahl,T (2169)-Chatalbashev,B (2546) Ballerup 2017}) 11. Qf2 {[%emt 0:06:32]} O-O {[%emt 0:04:48]} 12. Rg1 {[%emt 0:04:15]} (12. e5 $5 Nd5 {[#]} 13. e6 $1 $14 {[%mdl 512]} (13. Nxd5 Bxd5 14. Nf4 Nb6 $11)) 12... c5 {[%emt 0:10:42]} 13. d5 {[%emt 0:10:47]} Rb8 {[%emt 0:06:48]} 14. Ng5 {[%emt 0:07:30]} Bc8 {[%emt 0:05:52]} 15. g4 {[%emt 0:05:45]} (15. Kb1 $17) 15... b4 {[%emt 0:04:38]} 16. axb4 {[%emt 0:02:47]} Rxb4 {[%emt 0:00:49]} 17. Bh3 {[%emt 0:15:29]} Qa5 {[%emt 0:04:22]} 18. Qe1 {[%emt 0:03:06]} Nb6 {[%emt 0:09:52]} 19. Bf1 {[%emt 0:04:15]} Nfd7 {[%emt 0:06:39]} 20. f4 {[%emt 0:05:11]} Rxb2 {[%emt 0:03:31]} 21. e5 $19 {[%emt 0:01:53]} dxe5 {[%emt 0:08:21]} 22. f5 {[%emt 0:06:00]} e4 {[%emt 0:01:25]} 23. f6 {[%emt 0:02:29]} Ne5 {[%emt 0:02:54]} 24. Kd2 {[%emt 0:08:14]} Nbc4+ {[%emt 0:01:18]} 25. Bxc4 {[%emt 0:00:15]} Nxc4+ {[%emt 0:00:07]} 26. Ke2 {[%emt 0:00:14]} Rxc2+ {[%emt 0:00:45]} 27. Kf1 {[%emt 0:00:36]} Rxc3 {[%emt 0:02:30]} 28. Bxc5 {[%emt 0:01:01]} Qxc5 {[%emt 0:01:23]} 29. fxg7 {[%emt 0:00:09]} Ne3+ {[%emt 0:00:27]} 30. Ke2 {[%emt 0:00:17]} Qc4+ {[%emt 0:00:36]} 31. Kf2 {[%emt 0:00:12]} Nxd1+ {[%emt 0:00:41]} 32. Qxd1 {[%emt 0:00:07]} Rc2+ {[%emt 0:01:22]} 33. Kg3 {[%emt 0:00:17]} Qc3+ {[%emt 0:00:44]} 34. Nf3 {[%emt 0:00:49]} Kxg7 {[%emt 0:00:28]} 35. Qd4+ {[%emt 0:00:12]} Qxd4 {[%emt 0:00:07]} 36. Nxd4 0-1

[Event "EYCC Open U12 2018"]
[Site "Riga"]
[Date "2018.08.26"]
[Round "6"]
[White "Makoveev, Ilya"]
[Black "Razafindratsima, Timothe"]
[Result "1-0"]
[ECO "D90"]
[WhiteElo "2249"]
[BlackElo "1978"]
[Annotator "NA"]
[PlyCount "83"]
[EventDate "2018.08.20"]
[EventType "swiss"]
[EventCountry "LAT"]
[SourceTitle "playchess.com"]
[Source "ChessBase"]
[SourceQuality "1"]
[TimeControl "40/5400+30:1800+30"]

1. d4 {[%emt 0:00:00]} Nf6 {[%emt 0:00:00]} 2. c4 {[%emt 0:00:06]} g6 {[%emt 0:00:00]} 3. Nc3 {[%emt 0:00:24]} d5 {[%emt 0:00:00]} 4. Nf3 {[%emt 0:00:30]} Bg7 {[%emt 0:00:07]} 5. h4 {[%emt 0:01:24] D90: Grünfeld: 4 Nf3 Bg7 sidelines} (5. e3 O-O 6. Bd2 dxc4 7. Bxc4 Nbd7 8. e4 c5 9. d5 Ne8 10. Qe2 a6 11. a4 Nd6 12. Bd3 Ne5 13. Nxe5 Bxe5 14. O-O e6 15. Be3 exd5 16. Nxd5 {½-½ (25) Mamedyarov,S (2808)-Vachier Lagrave,M (2789) Stavanger 2018}) 5... h5 {[%emt 0:01:28]} 6. Bg5 {[%emt 0:00:29]} Ne4 {[%emt 0:02:08]} 7. Nxd5 $146 {[%emt 0:05:31]} ({Predecessor:} 7. cxd5 Nxc3 8. bxc3 Qxd5 9. g3 c5 10. Bg2 Bf5 11. O-O Be4 12. c4 Qd7 {1-0 (35) Indjic,A (2623)-Rabrenovic,V (2371) Novi Sad 2018}) 7... Nxg5 {[%emt 0:01:27]} 8. hxg5 {[%emt 0:00:21]} Bg4 {[%emt 0:05:13]} 9. e3 {[%emt 0:07:35]} e6 {[%emt 0:05:18]} 10. Nc3 {[%emt 0:05:47]} O-O {[%emt 0:15:59]} 11. Qb3 {[%emt 0:12:05]} Nd7 {[%emt 0:11:43]} 12. O-O-O {[%emt 0:01:41]} Rb8 {[%emt 0:05:47]} 13. Ne4 {[%emt 0:04:44]} c6 {[%emt 0:01:40]} 14. Bd3 {[%emt 0:07:32]} Qe7 {[%emt 0:05:27]} 15. Kb1 {[%emt 0:04:09]} c5 {[%emt 0:05:32]} 16. Qa3 {[%emt 0:01:23]} Rfc8 {[%emt 0:01:23]} 17. Bc2 {[%emt 0:25:41]} ({Viel schwächer wäre} 17. Qxa7 $6 cxd4 18. Qa4 (18. exd4 Ra8 $17) 18... dxe3 $15) (17. Rd2 $16) 17... Qf8 {[%emt 0:06:46]} 18. dxc5 {[%emt 0:04:38]} Nxc5 {[%emt 0:01:50]} 19. Nf6+ {[%emt 0:00:22]} Bxf6 {[%emt 0:00:06]} 20. gxf6 {[%emt 0:00:01]} b5 {[%emt 0:01:06]} 21. cxb5 {[%emt 0:05:06]} Rxb5 {[%emt 0:01:45]} 22. Rd4 {[%emt 0:08:07]} Rcb8 {[%emt 0:12:31]} 23. b3 {[%emt 0:00:17]} a5 {[%emt 0:01:32]} 24. Ne5 {[%emt 0:02:16]} a4 {[%emt 0:07:45]} 25. Nc6 {[%emt 0:00:27]} axb3 {[%emt 0:00:43]} 26. axb3 {[%emt 0:00:07]} Nxb3 {[%emt 0:01:44]} 27. Qxf8+ {[%emt 0:00:11]} Kxf8 {[%emt 0:00:49]} 28. Bxb3 {[%emt 0:00:17]} Rxb3+ {[%emt 0:00:22]} 29. Ka2 {[%emt 0:00:19]} Rb2+ {[%emt 0:02:30]} 30. Ka1 {[%emt 0:00:12]} Be2 {[%emt 0:01:05]} 31. Re1 {[%emt 0:01:00]} Ba6 $18 {[%emt 0:00:55]} (31... e5) 32. Red1 {[%emt 0:00:23]} Kg8 {[%emt 0:00:29]} 33. Rd8+ {[%emt 0:00:13]} Kh7 {[%emt 0:00:06]} 34. Nxb8 {[%emt 0:01:11]} Rxf2 {[%emt 0:00:24]} 35. Nxa6 {[%emt 0:00:07]} Rxf6 {[%emt 0:00:19]} 36. Nc5 {[%emt 0:01:53]} Rf5 {[%emt 0:00:24]} 37. Ne4 {[%emt 0:00:46]} Re5 {[%emt 0:00:11]} 38. R8d4 {[%emt 0:00:28]} Ra5+ {[%emt 0:00:29]} 39. Kb2 {[%emt 0:00:07]} g5 {[%emt 0:00:10]} 40. Rf1 {[%emt 0:00:00]} Ra7 {[%emt 0:00:00]} 41. Nxg5+ {[%emt 0:00:15]} Kg6 {[%emt 0:01:20]} 42. Nxf7 {[%emt 0:00:26]} 1-0

[Event "EYCC Open U12 2018"]
[Site "Riga"]
[Date "2018.08.26"]
[Round "6"]
[White "Safin, Robert"]
[Black "Strybuk, Artsiom I"]
[Result "1-0"]
[ECO "D70"]
[WhiteElo "2156"]
[BlackElo "1999"]
[Annotator "NA"]
[PlyCount "95"]
[EventDate "2018.08.20"]
[EventType "swiss"]
[EventCountry "LAT"]
[SourceTitle "playchess.com"]
[Source "ChessBase"]
[SourceQuality "1"]
[TimeControl "40/5400+30:1800+30"]

1. d4 {[%emt 0:00:00]} Nf6 {[%emt 0:00:00]} 2. c4 {[%emt 0:00:00]} g6 {[%emt 0:00:20]} 3. Nf3 {[%emt 0:00:00]} Bg7 {[%emt 0:00:33]} 4. g3 {[%emt 0:00:00]} c5 {[%emt 0:01:19]} 5. d5 {[%emt 0:00:00]} b5 {[%emt 0:00:09]} 6. cxb5 {[%emt 0:00:02]} a6 {[%emt 0:00:07]} 7. bxa6 {[%emt 0:00:03]} d6 {[%emt 0:00:21]} 8. Nc3 {[%emt 0:00:05]} O-O {[%emt 0:00:28]} 9. e4 {[%emt 0:00:23]} Bxa6 {[%emt 0:01:45]} 10. Bxa6 {[%emt 0:00:06] A58: Benko/Volga Gambit: Lines with 5 bxa6} Rxa6 {[%emt 0:00:42]} 11. O-O {[%emt 0:00:15]} Nbd7 {[%emt 0:01:25]} 12. Qe2 {[%emt 0:00:48]} Qa8 {[%emt 0:00:51]} 13. Bg5 {[%emt 0:14:59]} Nb6 {[%emt 0:09:16]} 14. Rab1 $146 {[%emt 0:07:56]} ({Predecessor:} 14. Rad1 Na4 15. Nxa4 Rxa4 16. Bxf6 Bxf6 17. a3 Qa6 {0-1 (57) Umezinwa,G (2310)-Fishbein,A (2495) Chicago 1992}) 14... Na4 {[%emt 0:14:38]} 15. Nb5 {[%emt 0:00:22]} Rb6 {[%emt 0:02:14]} 16. b3 {[%emt 0:02:23]} Rxb5 {[%emt 0:01:01]} 17. Qxb5 {[%emt 0:00:10]} Nc3 {[%emt 0:00:12]} 18. Qd3 {[%emt 0:00:03]} Nfxe4 {[%emt 0:23:16]} 19. Rbe1 {[%emt 0:03:12]} f5 $11 {[%emt 0:11:48]} ({Better is} 19... Nxg5 $15 20. Nxg5 Nxd5) 20. Bxe7 {[%emt 0:03:46]} Re8 {[%emt 0:00:16]} 21. Bg5 {[%emt 0:02:08]} Qxa2 {[%emt 0:01:03]} 22. Nd2 {[%emt 0:01:43]} Rb8 {[%emt 0:03:30]} 23. Bf4 {[%emt 0:06:22]} Bd4 {[%emt 0:03:59]} 24. Nxe4 {[%emt 0:04:23]} fxe4 {[%emt 0:04:24]} 25. Rxe4 {[%emt 0:10:19]} Nxe4 {[%emt 0:00:12]} 26. Qxe4 {[%emt 0:00:06]} Rf8 {[%emt 0:01:06]} 27. Qe6+ {[%emt 0:01:25]} Rf7 {[%emt 0:02:22]} 28. Qxd6 {[%emt 0:06:37]} Qxb3 {[%emt 0:03:25]} 29. Bh6 {[%emt 0:01:39]} Bg7 {[%emt 0:03:56]} 30. Bxg7 {[%emt 0:00:11]} Kxg7 {[%emt 0:00:18]} 31. Qxc5 {[%emt 0:00:08]} h5 {[%emt 0:01:49]} 32. Qd4+ {[%emt 0:00:49]} Kh7 {[%emt 0:00:40]} 33. Rd1 {[%emt 0:00:11]} Rd7 {[%emt 0:00:47]} 34. d6 {[%emt 0:00:14]} Qe6 {[%emt 0:01:38]} 35. Kg2 {[%emt 0:00:32]} Qe8 {[%emt 0:04:21]} 36. Qd5 {[%emt 0:00:38]} Qf8 {[%emt 0:01:49]} 37. Rd4 {[%emt 0:01:05]} Qd8 {[%emt 0:00:55]} 38. h4 {[%emt 0:01:18]} Kg7 {[%emt 0:00:53]} 39. Ra4 {[%emt 0:07:01]} Qf8 {[%emt 0:01:10]} 40. Ra6 {[%emt 0:00:00]} Qb8 {[%emt 0:00:00]} 41. Rc6 {[%emt 0:02:57]} Kh7 {[%emt 0:02:07]} 42. Qe6 {[%emt 0:01:31]} Rg7 {[%emt 0:02:12]} 43. d7 {[%emt 0:00:48]} Qa8 {[%emt 0:00:44]} 44. Qd5 {[%emt 0:02:01]} Qd8 {[%emt 0:00:20]} 45. Rd6 {[%emt 0:00:10]} Kh8 {[%emt 0:00:45]} 46. Kg1 {[%emt 0:00:41]} Kh7 {[%emt 0:00:08]} 47. Kh2 {[%emt 0:00:28]} Kh8 {[%emt 0:02:13]} 48. Qg5 1-0

[Event "EYCC Open U12 2018"]
[Site "Riga"]
[Date "2018.08.26"]
[Round "6"]
[White "Siniauski, Artsiom"]
[Black "Piliposyan, Robert"]
[Result "1/2-1/2"]
[ECO "B11"]
[WhiteElo "2081"]
[BlackElo "1975"]
[Annotator "NA"]
[PlyCount "100"]
[EventDate "2018.08.20"]
[EventType "swiss"]
[EventCountry "LAT"]
[SourceTitle "playchess.com"]
[Source "ChessBase"]
[SourceQuality "1"]
[TimeControl "40/5400+30:1800+30"]

1. e4 {[%emt 0:00:00]} c6 {[%emt 0:00:00]} 2. Nf3 {[%emt 0:00:00]} d5 {[%emt 0:00:00]} 3. Nc3 {[%emt 0:00:00]} Bg4 {[%emt 0:00:10]} 4. h3 {[%emt 0:00:00]} Bxf3 {[%emt 0:00:06]} 5. Qxf3 {[%emt 0:00:03]} e6 {[%emt 0:00:04]} 6. a3 {[%emt 0:00:05]} Nf6 {[%emt 0:03:06]} 7. d3 {[%emt 0:00:23]} Bd6 {[%emt 0:06:38]} 8. g3 {[%emt 0:01:30]} Nbd7 {[%emt 0:00:31]} 9. Bg2 {[%emt 0:00:07] B11: Caro-Kann: Two Knights Variation} Qc7 {[%emt 0:03:32]} 10. Qe2 {[%emt 0:07:46]} d4 $146 {[%emt 0:08:12]} ({Predecessor:} 10... O-O 11. O-O Be5 12. Nd1 Bd4 13. Kh2 b5 14. f4 dxe4 15. dxe4 e5 16. f5 Ne8 {½-½ (49) Rozentalis,E (2592)-Antoniewski,R (2559) Austria 2012}) 11. Nb1 {[%emt 0:06:07]} O-O-O {[%emt 0:08:16]} 12. b4 {[%emt 0:08:12]} Kb8 {[%emt 0:05:25]} 13. Bb2 {[%emt 0:03:06]} e5 {[%emt 0:03:00]} 14. O-O {[%emt 0:04:54]} h5 {[%emt 0:04:35]} 15. c3 {[%emt 0:05:17]} h4 {[%emt 0:05:10]} 16. g4 {[%emt 0:09:14]} Nf8 {[%emt 0:01:50]} 17. f4 {[%emt 0:03:57]} Ng6 {[%emt 0:05:16]} 18. cxd4 {[%emt 0:15:30]} Nxf4 {[%emt 0:01:24] [#]} 19. Qe3 $17 {[%emt 0:00:41]} (19. Rxf4 $1 $11 {[%mdl 512]} exf4 20. e5) 19... exd4 {[%emt 0:03:40]} 20. Bxd4 {[%emt 0:03:25]} Ne2+ {[%emt 0:04:42]} 21. Qxe2 {[%emt 0:00:07]} Bh2+ {[%emt 0:00:04]} 22. Kh1 {[%emt 0:00:12]} Rxd4 {[%emt 0:00:05]} 23. Nd2 {[%emt 0:00:10]} Rd7 {[%emt 0:07:19]} 24. Nc4 {[%emt 0:06:23]} Be5 {[%emt 0:06:58]} 25. Rab1 {[%emt 0:04:54]} Ne8 {[%emt 0:11:45]} 26. b5 {[%emt 0:02:51]} cxb5 {[%emt 0:02:28]} 27. Nxe5 {[%emt 0:01:12]} Qxe5 {[%emt 0:00:05]} 28. Rf5 {[%emt 0:00:08]} Qd4 {[%emt 0:00:39]} 29. Rfxb5 {[%emt 0:00:14]} Rh6 {[%emt 0:01:35]} 30. Rd5 {[%emt 0:03:24]} Rxd5 {[%emt 0:01:51]} 31. exd5 {[%emt 0:00:05]} Nd6 {[%emt 0:00:10]} 32. Qe7 {[%emt 0:01:14]} a6 {[%emt 0:02:08]} 33. g5 {[%emt 0:08:16]} Rg6 {[%emt 0:01:00]} 34. Be4 {[%emt 0:00:58]} Qe3 {[%emt 0:01:52]} 35. Qd8+ {[%emt 0:02:47]} Ka7 {[%emt 0:00:22]} 36. Bxg6 {[%emt 0:02:51]} Qxh3+ {[%emt 0:00:06]} 37. Kg1 {[%emt 0:00:05]} Qg3+ {[%emt 0:00:02]} 38. Kf1 {[%emt 0:00:51]} fxg6 {[%emt 0:01:12]} 39. Qb6+ {[%emt 0:01:20]} Kb8 {[%emt 0:01:28]} 40. Rb2 {[%emt 0:00:00]} h3 {[%emt 0:00:00]} 41. Qd8+ {[%emt 0:10:22]} Ka7 {[%emt 0:02:14]} 42. Qb6+ {[%emt 0:00:16]} Kb8 {[%emt 0:00:08]} 43. Qd8+ {[%emt 0:00:06]} Nc8 {[%emt 0:03:23]} 44. d6 {[%emt 0:01:52]} Qxd3+ {[%emt 0:00:31]} 45. Ke1 {[%emt 0:03:11]} Qg3+ {[%emt 0:09:35]} 46. Kd1 {[%emt 0:02:17]} Qxd6+ {[%emt 0:00:57]} 47. Qxd6+ {[%emt 0:00:12]} Nxd6 {[%emt 0:00:04]} 48. Rh2 {[%emt 0:01:09]} Ne4 {[%emt 0:00:06]} 49. Ke2 {[%emt 0:00:19]} Nxg5 {[%emt 0:00:04]} 50. Ke3 {[%emt 0:00:07]} a5 {[%emt 0:03:12] Ke4} 1/2-1/2

[Event "EYCC Open U12 2018"]
[Site "Riga"]
[Date "2018.08.26"]
[Round "6"]
[White "Sokolovsky, Yahli"]
[Black "Murzin, Volodar"]
[Result "0-1"]
[ECO "B51"]
[WhiteElo "2062"]
[BlackElo "2306"]
[Annotator "NA"]
[PlyCount "94"]
[EventDate "2018.08.20"]
[EventType "swiss"]
[EventCountry "LAT"]
[SourceTitle "playchess.com"]
[Source "ChessBase"]
[SourceQuality "1"]
[TimeControl "40/5400+30:1800+30"]

1. e4 {[%emt 0:00:00]} c5 {[%emt 0:00:00]} 2. Nf3 {[%emt 0:00:00]} d6 {[%emt 0:00:00]} 3. Bb5+ {[%emt 0:00:00]} Nd7 {[%emt 0:00:00]} 4. O-O {[%emt 0:00:34]} a6 {[%emt 0:00:00]} 5. Bd3 {[%emt 0:00:32] B51: Sizilianisch (Rossolimo-Variante)} Ngf6 {[%emt 0:00:03]} 6. c3 {[%emt 0:00:35]} b5 {[%emt 0:00:29]} 7. a4 {[%emt 0:00:44]} (7. Bc2 Bb7 8. Re1 c4 9. a4 e6 10. axb5 axb5 11. Rxa8 Qxa8 12. Na3 Bxe4 13. Bxe4 Nxe4 {½-½ (58) Anand,V (2768)-So,W (2780) Saint Louis 2018}) 7... c4 {[%emt 0:01:33]} 8. Be2 {[%emt 0:00:31]} Bb7 {[%emt 0:05:25]} 9. axb5 {[%emt 0:01:10]} axb5 {[%emt 0:00:01]} 10. Rxa8 {[%emt 0:00:16]} Bxa8 {[%emt 0:02:39]} 11. Na3 {[%emt 0:04:56]} Qb8 {[%emt 0:03:47]} 12. d3 {[%emt 0:02:07]} cxd3 {[%emt 0:10:24]} 13. Bxd3 {[%emt 0:00:51]} b4 $146 {[%emt 0:07:34]} ({Vorgänger:} 13... Bxe4 14. Nxb5 {½-½ (25) Muzychuk,A (2571)-Raja,H (2427) Caleta 2018}) 14. cxb4 {[%emt 0:04:38]} g6 {[%emt 0:00:49]} 15. Qa4 {[%emt 0:13:17]} Bg7 {[%emt 0:02:24]} 16. Bb5 {[%emt 0:02:10]} Bxe4 {[%emt 0:07:15]} 17. Bg5 {[%emt 0:03:09]} Qb7 {[%emt 0:01:32]} 18. Bxf6 {[%emt 0:03:38]} Bxf6 {[%emt 0:00:19]} 19. Rc1 {[%emt 0:02:32]} (19. Nc4 $11 Qc7 20. Qa5 Qxa5 21. bxa5) 19... O-O {[%emt 0:01:38]} 20. Qb3 {[%emt 0:23:31]} (20. Bxd7 $17 {might work better.} Bxb2 21. Bc6 Bxc6 22. Qxc6 Qxc6 23. Rxc6 Bxa3 24. Rc7) 20... Nb6 {[%emt 0:07:07]} 21. Bf1 {[%emt 0:02:15]} Bd5 {[%emt 0:04:16]} 22. Nc4 $19 {[%emt 0:04:43]} Rb8 {[%emt 0:12:20]} 23. Nfd2 {[%emt 0:08:39]} Bg5 {[%emt 0:07:04]} 24. Rc2 {[%emt 0:03:23]} Bxd2 {[%emt 0:01:29]} 25. Rxd2 {[%emt 0:00:04]} Rc8 {[%emt 0:01:04]} 26. Na5 {[%emt 0:02:19]} Bxb3 {[%emt 0:00:08]} 27. Nxb7 {[%emt 0:00:06]} Rc1 {[%emt 0:00:08]} 28. Na5 {[%emt 0:00:28]} Ba4 {[%emt 0:00:07]} 29. f3 {[%emt 0:02:16]} Bb5 {[%emt 0:00:07]} 30. Rf2 {[%emt 0:00:06]} Nd5 {[%emt 0:00:16]} 31. Nb3 {[%emt 0:01:31]} Rd1 {[%emt 0:00:13]} 32. Nd2 {[%emt 0:02:18]} Ne3 {[%emt 0:00:14]} 33. f4 {[%emt 0:01:47]} Kf8 {[%emt 0:00:20]} 34. Rf3 {[%emt 0:00:59]} Nxf1 {[%emt 0:00:05]} 35. Nxf1 {[%emt 0:00:01]} Ke8 {[%emt 0:00:01]} 36. g4 {[%emt 0:00:50]} Kd7 {[%emt 0:00:07]} 37. f5 {[%emt 0:00:57]} g5 {[%emt 0:01:59]} 38. Kg2 {[%emt 0:03:14]} Bc6 {[%emt 0:00:10]} 39. Ne3 {[%emt 0:00:18]} Rd2+ {[%emt 0:00:08]} 40. Kg3 {[%emt 0:00:00]} Bxf3 {[%emt 0:00:00]} 41. Kxf3 {[%emt 0:00:13]} Rxb2 {[%emt 0:00:14]} 42. Nd5 {[%emt 0:01:16]} Rxh2 {[%emt 0:00:11]} 43. Nb6+ {[%emt 0:00:40]} Kd8 {[%emt 0:00:13]} 44. Nc4 {[%emt 0:00:14]} Rh3+ {[%emt 0:00:16]} 45. Ke4 {[%emt 0:00:32]} Rb3 {[%emt 0:00:07]} 46. Kd5 {[%emt 0:00:46]} Rxb4 {[%emt 0:00:13]} 47. Ne3 {[%emt 0:00:39]} Kd7 {[%emt 0:00:14] Kd4} 0-1

[Event "EYCC Open U12 2018"]
[Site "Riga"]
[Date "2018.08.26"]
[Round "6"]
[White "Silich, Yahor"]
[Black "Grebnev, Aleksey"]
[Result "1/2-1/2"]
[ECO "C01"]
[WhiteElo "2043"]
[BlackElo "2143"]
[Annotator "NA"]
[PlyCount "88"]
[EventDate "2018.08.20"]
[EventType "swiss"]
[EventCountry "LAT"]
[SourceTitle "playchess.com"]
[Source "ChessBase"]
[SourceQuality "1"]
[TimeControl "40/5400+30:1800+30"]

1. e4 {[%emt 0:00:00]} e6 {[%emt 0:00:00]} 2. d4 {[%emt 0:00:00]} d5 {[%emt 0:00:00]} 3. exd5 {[%emt 0:00:06]} exd5 {[%emt 0:00:00]} 4. Nf3 {[%emt 0:00:13]} Nf6 {[%emt 0:00:11]} 5. Bd3 {[%emt 0:00:20]} c5 {[%emt 0:01:11]} 6. O-O {[%emt 0:00:21]} c4 {[%emt 0:01:57]} 7. Re1+ {[%emt 0:01:11]} Be7 {[%emt 0:00:18]} 8. Bf1 {[%emt 0:00:15]} O-O {[%emt 0:00:06] C01: French: Exchange Variation} 9. b3 {[%emt 0:00:38]} (9. Bg5) 9... cxb3 {[%emt 0:00:07]} 10. axb3 {[%emt 0:00:37]} Bf5 {[%emt 0:00:18]} 11. Ne5 {[%emt 0:28:23]} Nc6 {[%emt 0:08:02]} 12. Nxc6 {[%emt 0:01:08]} bxc6 {[%emt 0:00:16]} 13. Bd3 {[%emt 0:00:41]} Bxd3 {[%emt 0:02:24]} 14. Qxd3 {[%emt 0:00:25]} Nd7 $146 {[%emt 0:03:22]} ({Predecessor:} 14... Bd6 15. Nc3 Qc7 16. h3 {½-½ (47) Mahdy,K (2400)-Roth,P (2285) Austria 1997}) 15. Ba3 {[%emt 0:05:19]} Bxa3 {[%emt 0:03:11]} 16. Nxa3 {[%emt 0:00:14]} Nf6 {[%emt 0:01:08]} 17. Nb1 {[%emt 0:15:48]} Qc7 {[%emt 0:03:57]} 18. Nd2 {[%emt 0:03:38]} Rfe8 {[%emt 0:00:40]} 19. Qc3 {[%emt 0:12:31]} h6 {[%emt 0:01:34]} 20. g3 {[%emt 0:01:56]} Qb6 {[%emt 0:02:02]} 21. f3 {[%emt 0:06:30]} Rac8 {[%emt 0:03:09]} 22. Rxe8+ {[%emt 0:03:41]} Rxe8 {[%emt 0:01:26]} 23. Kf2 {[%emt 0:00:12]} Nd7 {[%emt 0:02:57]} 24. Ra5 $11 {[%emt 0:01:57]} Nf8 {[%emt 0:07:10]} 25. b4 {[%emt 0:04:10]} Ne6 {[%emt 0:05:09]} 26. Nb3 {[%emt 0:00:24]} Rb8 {[%emt 0:02:32]} 27. Ke3 {[%emt 0:01:28]} h5 {[%emt 0:09:20]} 28. Nc5 {[%emt 0:02:34]} Nc7 {[%emt 0:01:52]} 29. Ra4 {[%emt 0:03:59]} Re8+ {[%emt 0:03:19]} 30. Kf2 {[%emt 0:00:42]} Nb5 {[%emt 0:00:59]} 31. Qd3 {[%emt 0:00:31]} Qd8 {[%emt 0:03:10]} 32. Ra1 {[%emt 0:03:31]} Qe7 {[%emt 0:01:02]} 33. Qd2 {[%emt 0:00:41]} h4 {[%emt 0:01:44]} 34. Nb3 {[%emt 0:00:59]} Qd7 {[%emt 0:02:09]} 35. Re1 {[%emt 0:01:01]} Rxe1 {[%emt 0:01:09]} 36. Qxe1 {[%emt 0:00:35]} Kf8 {[%emt 0:00:53]} 37. Qe5 {[%emt 0:00:50]} hxg3+ {[%emt 0:00:58]} 38. hxg3 {[%emt 0:00:29]} Qh3 {[%emt 0:02:39]} 39. Nc5 Qh2+ 40. Ke3 Qh3 41. Kf2 Qh2+ 42. Ke3 Qxc2 43. Nd7+ Kg8 44. Qe8+ Kh7 {Ke4} 1/2-1/2